[Event "*** Titled Tuesday Blitz"]
[Site "Chess.com"]
[Date "2020.11.03"]
[Round "1"]
[White "MateusViageiro"]
[Black "AvitalBor"]
[Result "0-1"]
[WhiteElo "2353"]
[BlackElo "2693"]
[TimeControl "180+1"]
[EndTime "10:06:31 PST"]
[Termination "AvitalBor won by resignation"]

1. e4 {[%clk 0:03:00.9]} 1... e5 {[%clk 0:03:00.4]} 2. Nf3 {[%clk 0:03:01.1]}
2... Nc6 {[%clk 0:03:01.3]} 3. Bc4 {[%clk 0:03:00.4]} 3... Bc5 {[%clk 0:03:01]}
4. O-O {[%clk 0:03:00]} 4... d6 {[%clk 0:03:01.6]} 5. c3 {[%clk 0:03:00.1]} 5...
Bb6 {[%clk 0:02:56.1]} 6. h3 {[%clk 0:02:57.6]} 6... Nf6 {[%clk 0:02:54.8]} 7.
Re1 {[%clk 0:02:54.8]} 7... O-O {[%clk 0:02:48.7]} 8. d4 {[%clk 0:02:53.8]} 8...
h6 {[%clk 0:02:49.2]} 9. a4 {[%clk 0:02:49]} 9... a6 {[%clk 0:02:47.5]} 10. b4
{[%clk 0:02:42.3]} 10... Re8 {[%clk 0:02:44.6]} 11. Qb3 {[%clk 0:02:36.6]} 11...
Qe7 {[%clk 0:02:38.8]} 12. Bb2 {[%clk 0:02:28.6]} 12... Bd7 {[%clk 0:02:26.9]}
13. Nbd2 {[%clk 0:02:24.2]} 13... Nh5 {[%clk 0:02:23.3]} 14. dxe5 {[%clk
0:02:11]} 14... Nxe5 {[%clk 0:02:21.6]} 15. Nxe5 {[%clk 0:02:10.1]} 15... dxe5
{[%clk 0:02:21.5]} 16. Qd1 {[%clk 0:01:58.4]} 16... Qg5 {[%clk 0:02:15.2]} 17.
Qf3 {[%clk 0:01:54.7]} 17... Nf4 {[%clk 0:02:08.6]} 18. Kh2 {[%clk 0:01:47.1]}
18... Be6 {[%clk 0:02:03.9]} 19. Qg3 {[%clk 0:01:33.8]} 19... Nxh3 {[%clk
0:01:55.1]} 20. gxh3 {[%clk 0:01:26.2]} 20... Qxd2 {[%clk 0:01:53.9]} 21. Re2
{[%clk 0:01:24.6]} 21... Qf4 {[%clk 0:01:49.3]} 22. Bxe6 {[%clk 0:01:18]} 22...
Rxe6 {[%clk 0:01:48]} 23. Rg1 {[%clk 0:01:15.4]} 23... Qxg3+ {[%clk 0:01:42.6]}
24. Rxg3 {[%clk 0:01:16.3]} 24... Rd8 {[%clk 0:01:42.8]} 25. c4 {[%clk
0:01:14.2]} 25... Bd4 {[%clk 0:01:32.7]} 26. Bc1 {[%clk 0:01:12.2]} 26... c5
{[%clk 0:01:29.9]} 27. b5 {[%clk 0:01:08.9]} 27... axb5 {[%clk 0:01:30.4]} 28.
axb5 {[%clk 0:01:09.8]} 28... Ra8 {[%clk 0:01:30.4]} 29. f4 {[%clk 0:00:59.3]}
29... exf4 {[%clk 0:01:28.2]} 30. Bxf4 {[%clk 0:01:00.2]} 30... Ra4 {[%clk
0:01:26.9]} 31. Reg2 {[%clk 0:00:51.4]} 31... Rxc4 {[%clk 0:01:21.6]} 32. e5
{[%clk 0:00:51.2]} 32... g6 {[%clk 0:01:17.9]} 33. Re2 {[%clk 0:00:42.1]} 33...
Kh7 {[%clk 0:01:15]} 34. Ra3 {[%clk 0:00:37.9]} 34... g5 {[%clk 0:01:13.4]} 35.
Bg3 {[%clk 0:00:37.1]} 35... Rb4 {[%clk 0:01:10.4]} 36. Ra8 {[%clk 0:00:31]}
36... Rxb5 {[%clk 0:01:09.6]} 37. Rd8 {[%clk 0:00:31.1]} 37... b6 {[%clk
0:01:07.2]} 38. Rd7 {[%clk 0:00:30.3]} 38... Kg6 {[%clk 0:01:06.5]} 39. h4
{[%clk 0:00:29.6]} 39... gxh4 {[%clk 0:01:04.7]} 40. Bxh4 {[%clk 0:00:29.5]}
40... Rb2 {[%clk 0:01:04.1]} 41. Rxb2 {[%clk 0:00:25.3]} 41... Bxb2 {[%clk
0:01:03.9]} 42. Bg3 {[%clk 0:00:25.4]} 42... Bxe5 {[%clk 0:01:03.6]} 43. Bxe5
{[%clk 0:00:25.7]} 43... Rxe5 {[%clk 0:01:04.5]} 44. Rd6+ {[%clk 0:00:26.3]}
44... Re6 {[%clk 0:01:04.8]} 0-1

[Event "*** Titled Tuesday Blitz"]
[Site "Chess.com"]
[Date "2020.11.03"]
[Round "1"]
[White "ARTHURMOTIVATOR"]
[Black "sergiochess83"]
[Result "0-1"]
[WhiteElo "2394"]
[BlackElo "2789"]
[TimeControl "180+1"]
[EndTime "10:06:33 PST"]
[Termination "sergiochess83 won on time"]

1. e4 {[%clk 0:03:00.7]} 1... c6 {[%clk 0:02:58.7]} 2. d4 {[%clk 0:02:58.8]}
2... d5 {[%clk 0:02:55.1]} 3. exd5 {[%clk 0:02:58.8]} 3... cxd5 {[%clk
0:02:49.7]} 4. Bd3 {[%clk 0:02:58.7]} 4... Nc6 {[%clk 0:02:50.1]} 5. c3 {[%clk
0:02:57.9]} 5... g6 {[%clk 0:02:50.7]} 6. h3 {[%clk 0:02:56.5]} 6... Bf5 {[%clk
0:02:51.1]} 7. Nf3 {[%clk 0:02:55.8]} 7... Qc7 {[%clk 0:02:48.1]} 8. O-O {[%clk
0:02:54.2]} 8... e6 {[%clk 0:02:48.2]} 9. Re1 {[%clk 0:02:52.3]} 9... Bd6 {[%clk
0:02:47.2]} 10. Bf1 {[%clk 0:02:49.9]} 10... h5 {[%clk 0:02:46.6]} 11. a4 {[%clk
0:02:40.1]} 11... Nf6 {[%clk 0:02:41.7]} 12. Na3 {[%clk 0:02:34.6]} 12... a6
{[%clk 0:02:40.4]} 13. Nc2 {[%clk 0:02:33.5]} 13... Ne4 {[%clk 0:02:20.3]} 14.
Ne3 {[%clk 0:02:17.9]} 14... O-O-O {[%clk 0:02:11.4]} 15. Bd2 {[%clk 0:01:55.5]}
15... Ne7 {[%clk 0:02:00]} 16. b4 {[%clk 0:01:50.2]} 16... g5 {[%clk 0:01:51.5]}
17. Ne5 {[%clk 0:01:23.3]} 17... f6 {[%clk 0:01:45.8]} 18. Nxf5 {[%clk
0:01:14.2]} 18... Nxf5 {[%clk 0:01:44.6]} 19. Rxe4 {[%clk 0:00:49.4]} 19... dxe4
{[%clk 0:01:43.7]} 20. Nc4 {[%clk 0:00:49.3]} 20... g4 {[%clk 0:01:29.6]} 21. h4
{[%clk 0:00:48.2]} 21... g3 {[%clk 0:01:25.9]} 22. f3 {[%clk 0:00:44.5]} 22...
Bf4 {[%clk 0:00:34.9]} 23. fxe4 {[%clk 0:00:24]} 23... Nxd4 {[%clk 0:00:33.9]}
24. cxd4 {[%clk 0:00:09.4]} 24... Rxd4 {[%clk 0:00:34.8]} 25. Bxf4 {[%clk
0:00:04]} 25... Rxd1 {[%clk 0:00:34.4]} 0-1

[Event "*** Titled Tuesday Blitz"]
[Site "Chess.com"]
[Date "2020.11.03"]
[Round "1"]
[White "Skat2704"]
[Black "Aleksey_Sorokin"]
[Result "0-1"]
[WhiteElo "2442"]
[BlackElo "2877"]
[TimeControl "180+1"]
[EndTime "10:06:34 PST"]
[Termination "Aleksey_Sorokin won by checkmate"]

1. d4 {[%clk 0:03:00.9]} 1... Nf6 {[%clk 0:02:58.4]} 2. c4 {[%clk 0:03:01.1]}
2... g6 {[%clk 0:02:56.9]} 3. Nc3 {[%clk 0:03:00.5]} 3... d5 {[%clk 0:02:55.5]}
4. Nf3 {[%clk 0:03:00.3]} 4... Bg7 {[%clk 0:02:55.3]} 5. e3 {[%clk 0:03:00.7]}
5... O-O {[%clk 0:02:53.9]} 6. cxd5 {[%clk 0:03:01]} 6... Nxd5 {[%clk
0:02:54.5]} 7. Bc4 {[%clk 0:03:01.5]} 7... Nb6 {[%clk 0:02:45.2]} 8. Bb3 {[%clk
0:03:01.5]} 8... c5 {[%clk 0:02:45.4]} 9. O-O {[%clk 0:03:01]} 9... cxd4 {[%clk
0:02:45.1]} 10. exd4 {[%clk 0:03:01.1]} 10... Nc6 {[%clk 0:02:44.8]} 11. Be3
{[%clk 0:02:58.7]} 11... Na5 {[%clk 0:02:42.3]} 12. h3 {[%clk 0:02:55]} 12...
Nxb3 {[%clk 0:02:36.7]} 13. Qxb3 {[%clk 0:02:53.8]} 13... Be6 {[%clk 0:02:36.3]}
14. Qc2 {[%clk 0:02:52.8]} 14... Rc8 {[%clk 0:02:34.8]} 15. Rfe1 {[%clk
0:02:45.4]} 15... Nd5 {[%clk 0:02:31]} 16. Qd2 {[%clk 0:02:40.5]} 16... Nxe3
{[%clk 0:02:24.5]} 17. fxe3 {[%clk 0:02:38.8]} 17... Re8 {[%clk 0:02:24.3]} 18.
Rad1 {[%clk 0:02:34.6]} 18... Qb6 {[%clk 0:02:22.3]} 19. Kh1 {[%clk 0:02:31.2]}
19... Qa5 {[%clk 0:02:12.2]} 20. a3 {[%clk 0:02:28.9]} 20... Bb3 {[%clk
0:02:10.9]} 21. Rc1 {[%clk 0:02:27.9]} 21... Red8 {[%clk 0:02:00.8]} 22. Qf2
{[%clk 0:02:19.7]} 22... a6 {[%clk 0:01:49]} 23. e4 {[%clk 0:02:12.8]} 23... Qb6
{[%clk 0:01:44.8]} 24. Ne2 {[%clk 0:01:56.5]} 24... Bc4 {[%clk 0:01:39.5]} 25.
Qe3 {[%clk 0:01:41.5]} 25... e5 {[%clk 0:01:33.2]} 26. Qd2 {[%clk 0:00:58.4]}
26... exd4 {[%clk 0:01:11.8]} 27. e5 {[%clk 0:00:55.7]} 27... d3 {[%clk
0:01:08]} 28. Nc3 {[%clk 0:00:51.3]} 28... Bb5 {[%clk 0:01:00.4]} 29. Re4 {[%clk
0:00:40.8]} 29... Bc6 {[%clk 0:00:57.4]} 30. Rh4 {[%clk 0:00:35.6]} 30... Bxf3
{[%clk 0:00:45.4]} 31. gxf3 {[%clk 0:00:35.1]} 31... Bxe5 {[%clk 0:00:39.8]} 32.
Qh6 {[%clk 0:00:32.9]} 32... Qxb2 {[%clk 0:00:32.2]} 33. Qxh7+ {[%clk
0:00:31.5]} 33... Kf8 {[%clk 0:00:31.1]} 34. Rg1 {[%clk 0:00:26.1]} 34... Qh2#
{[%clk 0:00:29.4]} 0-1

[Event "*** Titled Tuesday Blitz"]
[Site "Chess.com"]
[Date "2020.11.03"]
[Round "1"]
[White "Shuvalov"]
[Black "GMHess"]
[Result "0-1"]
[WhiteElo "2437"]
[BlackElo "2861"]
[TimeControl "180+1"]
[EndTime "10:06:36 PST"]
[Termination "GMHess won by resignation"]

1. Nf3 {[%clk 0:02:51]} 1... g6 {[%clk 0:03:00.9]} 2. c4 {[%clk 0:02:50.4]} 2...
Bg7 {[%clk 0:03:01.6]} 3. d4 {[%clk 0:02:51]} 3... c5 {[%clk 0:03:01.9]} 4. d5
{[%clk 0:02:49.7]} 4... f5 {[%clk 0:03:02.4]} 5. g3 {[%clk 0:02:46.4]} 5... d6
{[%clk 0:03:01.8]} 6. Bg2 {[%clk 0:02:46.2]} 6... Nd7 {[%clk 0:03:02.4]} 7. O-O
{[%clk 0:02:45]} 7... a6 {[%clk 0:03:00.7]} 8. a4 {[%clk 0:02:40.7]} 8... Ngf6
{[%clk 0:02:54.2]} 9. Nc3 {[%clk 0:02:38.3]} 9... Nb6 {[%clk 0:02:53.9]} 10. Qb3
{[%clk 0:02:33.5]} 10... O-O {[%clk 0:02:52.6]} 11. Bd2 {[%clk 0:02:21.4]} 11...
h6 {[%clk 0:02:49.1]} 12. Rae1 {[%clk 0:02:18.3]} 12... Ne4 {[%clk 0:02:42]} 13.
Nxe4 {[%clk 0:01:45.2]} 13... fxe4 {[%clk 0:02:42.9]} 14. Nh4 {[%clk 0:01:45.9]}
14... g5 {[%clk 0:02:42.8]} 15. Ng6 {[%clk 0:01:42]} 15... Rf6 {[%clk
0:02:36.8]} 16. Bxe4 {[%clk 0:01:10.3]} 16... a5 {[%clk 0:02:34.5]} 17. f4
{[%clk 0:01:04.1]} 17... Bh3 {[%clk 0:01:53.9]} 18. Rf3 {[%clk 0:01:00.2]} 18...
g4 {[%clk 0:01:47.1]} 19. Rf2 {[%clk 0:00:48.2]} 19... Ra6 {[%clk 0:01:30.9]}
20. f5 {[%clk 0:00:42.4]} 20... Qd7 {[%clk 0:01:16.6]} 21. Bc3 {[%clk
0:00:37.4]} 21... Qxa4 {[%clk 0:01:04.6]} 22. Qxa4 {[%clk 0:00:18.5]} 22... Nxa4
{[%clk 0:01:05.5]} 23. Nxe7+ {[%clk 0:00:18.7]} 23... Kf7 {[%clk 0:01:02.3]} 24.
Bxf6 {[%clk 0:00:17.3]} 24... Bxf6 {[%clk 0:01:01.7]} 25. Ng6 {[%clk 0:00:18.1]}
25... Nxb2 {[%clk 0:00:57.7]} 26. e3 {[%clk 0:00:17.7]} 26... a4 {[%clk
0:00:55.8]} 27. Bb1 {[%clk 0:00:16.9]} 27... a3 {[%clk 0:00:37.5]} 28. Ba2
{[%clk 0:00:16.9]} 28... Nd3 {[%clk 0:00:37.8]} 29. Nf4 {[%clk 0:00:15.7]} 29...
Nxe1 {[%clk 0:00:36.5]} 30. Nxh3 {[%clk 0:00:15.4]} 30... gxh3 {[%clk
0:00:37.4]} 31. Rd2 {[%clk 0:00:11.7]} 31... Nf3+ {[%clk 0:00:37.2]} 32. Kf2
{[%clk 0:00:07.1]} 32... Nxd2 {[%clk 0:00:38.1]} 0-1

[Event "*** Titled Tuesday Blitz"]
[Site "Chess.com"]
[Date "2020.11.03"]
[Round "1"]
[White "kai_nov"]
[Black "valeriocarnicelli"]
[Result "1-0"]
[WhiteElo "2288"]
[BlackElo "2572"]
[TimeControl "180+1"]
[EndTime "10:06:36 PST"]
[Termination "kai_nov won by resignation"]

1. d4 {[%clk 0:03:00.9]} 1... d5 {[%clk 0:02:59.5]} 2. c4 {[%clk 0:03:00.5]}
2... c6 {[%clk 0:02:59.9]} 3. Nf3 {[%clk 0:02:59.2]} 3... Nf6 {[%clk 0:03:00.1]}
4. e3 {[%clk 0:02:59.1]} 4... e6 {[%clk 0:03:00.2]} 5. Nbd2 {[%clk 0:02:58.6]}
5... Nbd7 {[%clk 0:03:00.3]} 6. Bd3 {[%clk 0:02:57.7]} 6... b6 {[%clk 0:03:00]}
7. O-O {[%clk 0:02:56]} 7... Bb7 {[%clk 0:03:00.2]} 8. e4 {[%clk 0:02:55.2]}
8... dxe4 {[%clk 0:02:59.7]} 9. Nxe4 {[%clk 0:02:54.3]} 9... c5 {[%clk 0:03:00]}
10. d5 {[%clk 0:02:35]} 10... exd5 {[%clk 0:02:58.9]} 11. cxd5 {[%clk
0:02:32.4]} 11... Bxd5 {[%clk 0:02:50]} 12. Re1 {[%clk 0:02:02.4]} 12... Be7
{[%clk 0:02:39.9]} 13. Nd6+ {[%clk 0:01:56.7]} 13... Kf8 {[%clk 0:02:38.5]} 14.
Nf5 {[%clk 0:01:56.8]} 14... Qc7 {[%clk 0:02:19.9]} 15. Nxe7 {[%clk 0:01:54.4]}
15... Bxf3 {[%clk 0:02:20.1]} 16. Qxf3 {[%clk 0:01:50.5]} 16... Re8 {[%clk
0:02:21]} 17. Bf4 {[%clk 0:01:47.7]} 17... Qd8 {[%clk 0:02:17.7]} 18. Nc6 {[%clk
0:01:41.9]} 18... Qc8 {[%clk 0:02:10.9]} 19. Bd6+ {[%clk 0:01:40.9]} 19... Kg8
{[%clk 0:02:11.4]} 20. Ne7+ {[%clk 0:01:36]} 20... Rxe7 {[%clk 0:02:11.8]} 21.
Rxe7 {[%clk 0:01:35.9]} 21... g6 {[%clk 0:02:10.9]} 22. Rae1 {[%clk 0:01:24.2]}
22... Kg7 {[%clk 0:02:10.5]} 23. Bc4 {[%clk 0:01:22.5]} 23... Rf8 {[%clk
0:02:10.6]} 24. Qc3 {[%clk 0:01:10.5]} 24... Kg8 {[%clk 0:02:06.6]} 25. Qb3
{[%clk 0:01:05.2]} 25... Qc6 {[%clk 0:02:02.6]} 26. Bxf7+ {[%clk 0:00:58.3]}
26... Kh8 {[%clk 0:02:01]} 27. Be5 {[%clk 0:00:52.2]} 27... Nxe5 {[%clk
0:01:57.5]} 28. R7xe5 {[%clk 0:00:49.8]} 28... Qd6 {[%clk 0:01:37.5]} 29. h3
{[%clk 0:00:44]} 29... b5 {[%clk 0:01:30]} 30. Qe6 {[%clk 0:00:42.1]} 30... Qd8
{[%clk 0:01:28.3]} 31. Rxc5 {[%clk 0:00:35.1]} 31... Kg7 {[%clk 0:01:25.2]} 32.
Qe7 {[%clk 0:00:19.8]} 32... Qb8 {[%clk 0:01:12]} 33. Bb3+ {[%clk 0:00:18.4]}
33... Kh6 {[%clk 0:01:11.8]} 34. Rc7 {[%clk 0:00:18.2]} 34... a5 {[%clk
0:00:52.7]} 35. Qg7+ {[%clk 0:00:11.7]} 35... Kg5 {[%clk 0:00:53]} 36. Rc5+
{[%clk 0:00:11.3]} 36... Kf4 {[%clk 0:00:51.7]} 37. Qh6+ {[%clk 0:00:10.5]} 1-0

[Event "*** Titled Tuesday Blitz"]
[Site "Chess.com"]
[Date "2020.11.03"]
[Round "1"]
[White "Bigfish1995"]
[Black "Orest_Vovk"]
[Result "1-0"]
[WhiteElo "3005"]
[BlackElo "2466"]
[TimeControl "180+1"]
[EndTime "10:06:37 PST"]
[Termination "Bigfish1995 won on time"]

1. e4 {[%clk 0:02:49.5]} 1... g5 {[%clk 0:02:49]} 2. Ke2 {[%clk 0:02:39.3]} 2...
d5 {[%clk 0:02:43.9]} 3. d3 {[%clk 0:02:36.9]} 3... dxe4 {[%clk 0:02:36.7]} 4.
dxe4 {[%clk 0:02:34.6]} 4... Qxd1+ {[%clk 0:02:36.5]} 5. Kxd1 {[%clk 0:02:34.8]}
5... h6 {[%clk 0:02:33.5]} 6. Be3 {[%clk 0:02:34.6]} 6... Bg7 {[%clk 0:02:32.5]}
7. c3 {[%clk 0:02:34.7]} 7... Nf6 {[%clk 0:02:31.2]} 8. f3 {[%clk 0:02:35]} 8...
Nc6 {[%clk 0:02:30.2]} 9. Kc2 {[%clk 0:02:35]} 9... Bd7 {[%clk 0:02:28.6]} 10.
Nd2 {[%clk 0:02:34.5]} 10... O-O-O {[%clk 0:02:28.1]} 11. Ne2 {[%clk 0:02:32.8]}
11... Nh5 {[%clk 0:02:13.4]} 12. g4 {[%clk 0:02:29.1]} 12... Nf6 {[%clk
0:02:10.5]} 13. h4 {[%clk 0:02:29.3]} 13... gxh4 {[%clk 0:01:50.5]} 14. Rxh4
{[%clk 0:02:28.8]} 14... Ne5 {[%clk 0:01:49.8]} 15. Ng3 {[%clk 0:02:28]} 15...
Ng6 {[%clk 0:01:48.2]} 16. Rh2 {[%clk 0:02:27.2]} 16... e6 {[%clk 0:01:39.8]}
17. Be2 {[%clk 0:02:26.3]} 17... Ng8 {[%clk 0:01:30]} 18. Nh5 {[%clk 0:02:22.2]}
18... Be5 {[%clk 0:01:24.2]} 19. f4 {[%clk 0:02:22]} 19... Bd6 {[%clk
0:01:23.2]} 20. e5 {[%clk 0:02:20]} 20... Be7 {[%clk 0:01:12.6]} 21. Bxa7 {[%clk
0:02:19.7]} 21... f6 {[%clk 0:01:10.3]} 22. Bd3 {[%clk 0:02:15.8]} 22... Be8
{[%clk 0:01:02.8]} 23. exf6 {[%clk 0:01:46.9]} 23... Nxf6 {[%clk 0:01:01.9]} 24.
Bd4 {[%clk 0:01:47.4]} 24... e5 {[%clk 0:00:40.8]} 25. fxe5 {[%clk 0:01:39.8]}
25... Nxh5 {[%clk 0:00:40.5]} 26. gxh5 {[%clk 0:01:35.7]} 26... Nf4 {[%clk
0:00:40.1]} 27. Bf5+ {[%clk 0:01:36.1]} 27... Kb8 {[%clk 0:00:37]} 28. Rf1
{[%clk 0:01:36.1]} 28... Nd5 {[%clk 0:00:24.2]} 29. Bg6 {[%clk 0:01:35.5]} 29...
Bb5 {[%clk 0:00:19.6]} 30. Rf7 {[%clk 0:01:33.5]} 30... Bg5 {[%clk 0:00:16.6]}
31. Kb3 {[%clk 0:01:18.7]} 31... Bc6 {[%clk 0:00:08.8]} 32. e6 {[%clk
0:01:08.7]} 32... Rd6 {[%clk 0:00:03.6]} 33. Bxh8 {[%clk 0:01:07.4]} 33... Rxe6
{[%clk 0:00:02.1]} 34. Rf8+ {[%clk 0:01:06.1]} 34... Ka7 {[%clk 0:00:02.2]} 35.
Bd4+ {[%clk 0:01:07]} 35... b6 {[%clk 0:00:02.1]} 36. Ne4 {[%clk 0:01:06.5]}
36... Nf4 {[%clk 0:00:01.8]} 37. Nxg5 {[%clk 0:01:05.6]} 37... hxg5 {[%clk
0:00:01.1]} 38. Bf5 {[%clk 0:01:05]} 38... Bd5+ {[%clk 0:00:01.9]} 39. c4 {[%clk
0:01:05]} 39... Rd6 {[%clk 0:00:02.4]} 40. cxd5 {[%clk 0:01:05.2]} 1-0

[Event "*** Titled Tuesday Blitz"]
[Site "Chess.com"]
[Date "2020.11.03"]
[Round "1"]
[White "jacky72"]
[Black "MIJuanReyesRosa"]
[Result "1-0"]
[WhiteElo "2515"]
[BlackElo "2122"]
[TimeControl "180+1"]
[EndTime "10:06:37 PST"]
[Termination "jacky72 won on time"]

1. c4 {[%clk 0:02:55.7]} 1... c5 {[%clk 0:02:57.8]} 2. g3 {[%clk 0:02:55.6]}
2... Nf6 {[%clk 0:02:57.8]} 3. Bg2 {[%clk 0:02:56.5]} 3... d5 {[%clk 0:02:57.4]}
4. Nf3 {[%clk 0:02:57.4]} 4... Nc6 {[%clk 0:02:55.6]} 5. O-O {[%clk 0:02:58.3]}
5... e5 {[%clk 0:02:52.3]} 6. cxd5 {[%clk 0:02:59.2]} 6... Nxd5 {[%clk
0:02:52.2]} 7. Nc3 {[%clk 0:02:58.4]} 7... Be6 {[%clk 0:02:38.6]} 8. b3 {[%clk
0:02:54.5]} 8... Be7 {[%clk 0:02:36.9]} 9. Bb2 {[%clk 0:02:54.1]} 9... f6 {[%clk
0:02:33.9]} 10. Rc1 {[%clk 0:02:53.4]} 10... O-O {[%clk 0:02:32.6]} 11. Na4
{[%clk 0:02:51.6]} 11... b6 {[%clk 0:02:22.1]} 12. d3 {[%clk 0:02:49.8]} 12...
Rc8 {[%clk 0:02:21.2]} 13. Qd2 {[%clk 0:02:47.4]} 13... Qd7 {[%clk 0:02:19.9]}
14. Rfd1 {[%clk 0:02:46.6]} 14... Rfd8 {[%clk 0:02:20.2]} 15. h4 {[%clk
0:02:43.9]} 15... Bf8 {[%clk 0:02:18.7]} 16. h5 {[%clk 0:02:35.8]} 16... Qf7
{[%clk 0:02:05.5]} 17. h6 {[%clk 0:02:33.8]} 17... g6 {[%clk 0:02:03.1]} 18. Nc3
{[%clk 0:02:31]} 18... Nd4 {[%clk 0:01:54.3]} 19. Nxd4 {[%clk 0:02:27.9]} 19...
cxd4 {[%clk 0:01:29]} 20. Ne4 {[%clk 0:02:24.5]} 20... Nb4 {[%clk 0:01:20.6]}
21. Ba3 {[%clk 0:02:06]} 21... a5 {[%clk 0:01:01.4]} 22. Bxb4 {[%clk 0:02:01.5]}
22... Bxb4 {[%clk 0:00:54.6]} 23. Qb2 {[%clk 0:02:01.4]} 23... Bd5 {[%clk
0:00:48]} 24. Nxf6+ {[%clk 0:01:53.5]} 24... Qxf6 {[%clk 0:00:40.4]} 25. Bxd5+
{[%clk 0:01:54.4]} 25... Kh8 {[%clk 0:00:31.7]} 26. Bf3 {[%clk 0:01:54.8]} 26...
Qe7 {[%clk 0:00:23]} 27. Rxc8 {[%clk 0:01:53]} 27... Rxc8 {[%clk 0:00:22.7]} 28.
Rc1 {[%clk 0:01:53.9]} 28... Bc3 {[%clk 0:00:21.3]} 29. Qc2 {[%clk 0:01:54.4]}
29... b5 {[%clk 0:00:17.9]} 30. e3 {[%clk 0:01:45.9]} 30... b4 {[%clk
0:00:15.9]} 31. Qe2 {[%clk 0:01:45.9]} 31... Qg5 {[%clk 0:00:14.2]} 32. Rf1
{[%clk 0:01:43.2]} 32... Qxh6 {[%clk 0:00:12.5]} 33. Bg4 {[%clk 0:01:39.4]}
33... Rf8 {[%clk 0:00:10.7]} 34. e4 {[%clk 0:01:36.7]} 34... Bd2 {[%clk
0:00:07.3]} 35. Kg2 {[%clk 0:01:35.3]} 35... Bg5 {[%clk 0:00:06.2]} 36. Rh1
{[%clk 0:01:34.9]} 36... Qg7 {[%clk 0:00:06.3]} 37. Qc2 {[%clk 0:01:32.7]} 37...
Qf7 {[%clk 0:00:06.3]} 38. Bd1 {[%clk 0:01:28.8]} 38... Kg7 {[%clk 0:00:04.9]}
39. Qe2 {[%clk 0:01:25.9]} 39... Bf6 {[%clk 0:00:04.3]} 40. Qg4 {[%clk
0:01:23.2]} 40... Rd8 {[%clk 0:00:03.6]} 41. f4 {[%clk 0:01:22.9]} 41... exf4
{[%clk 0:00:03.1]} 42. gxf4 {[%clk 0:01:23.8]} 42... Qe7 {[%clk 0:00:01.3]} 43.
e5 {[%clk 0:01:22.8]} 1-0

[Event "*** Titled Tuesday Blitz"]
[Site "Chess.com"]
[Date "2020.11.03"]
[Round "1"]
[White "lukas_111111"]
[Black "IngOscarArdila"]
[Result "1-0"]
[WhiteElo "2517"]
[BlackElo "2125"]
[TimeControl "180+1"]
[EndTime "10:06:39 PST"]
[Termination "lukas_111111 won by resignation"]

1. d4 {[%clk 0:03:00.9]} 1... Nf6 {[%clk 0:02:59.6]} 2. c4 {[%clk 0:03:00.7]}
2... g6 {[%clk 0:02:59.9]} 3. f3 {[%clk 0:02:59.4]} 3... Bg7 {[%clk 0:03:00.4]}
4. e4 {[%clk 0:02:59.2]} 4... d6 {[%clk 0:02:57]} 5. Nc3 {[%clk 0:02:59.1]} 5...
O-O {[%clk 0:02:55.1]} 6. Nge2 {[%clk 0:02:59.5]} 6... e6 {[%clk 0:02:55]} 7.
Bg5 {[%clk 0:02:57.4]} 7... h6 {[%clk 0:02:54.6]} 8. Be3 {[%clk 0:02:56.3]} 8...
Nbd7 {[%clk 0:02:55.1]} 9. Qd2 {[%clk 0:02:56]} 9... Kh7 {[%clk 0:02:55.7]} 10.
g4 {[%clk 0:02:55.8]} 10... e5 {[%clk 0:02:47.5]} 11. O-O-O {[%clk 0:02:53.4]}
11... exd4 {[%clk 0:02:46.2]} 12. Nxd4 {[%clk 0:02:52.6]} 12... Qe7 {[%clk
0:02:45.8]} 13. h4 {[%clk 0:02:51.9]} 13... Ne8 {[%clk 0:02:39.8]} 14. Nd5
{[%clk 0:02:47.4]} 14... Qd8 {[%clk 0:02:39.1]} 15. h5 {[%clk 0:02:35]} 15... g5
{[%clk 0:02:38.9]} 16. f4 {[%clk 0:02:30.6]} 16... Bxd4 {[%clk 0:02:28.9]} 17.
Bxd4 {[%clk 0:02:22.9]} 17... gxf4 {[%clk 0:02:27.2]} 18. Qxf4 {[%clk
0:02:14.1]} 18... Qg5 {[%clk 0:02:24.8]} 19. Qxg5 {[%clk 0:01:56.2]} 19... hxg5
{[%clk 0:02:24.5]} 20. h6 {[%clk 0:01:48]} 20... Ne5 {[%clk 0:02:17.4]} 21. Bxe5
{[%clk 0:01:46.7]} 21... dxe5 {[%clk 0:02:17.2]} 22. Be2 {[%clk 0:01:46.9]}
22... c6 {[%clk 0:02:11.3]} 23. Ne7 {[%clk 0:01:46.8]} 23... f6 {[%clk
0:02:04.1]} 24. Rd8 {[%clk 0:01:40.6]} 24... Bxg4 {[%clk 0:01:52.5]} 25. Rxa8
{[%clk 0:01:38.9]} 25... Bxe2 {[%clk 0:01:52.6]} 26. Nf5 {[%clk 0:01:36.5]}
26... Rh8 {[%clk 0:01:26.4]} 27. Rxa7 {[%clk 0:01:33.6]} 27... Bxc4 {[%clk
0:01:13.2]} 28. Rxb7+ {[%clk 0:01:31.9]} 28... Kg6 {[%clk 0:01:13.6]} 29. h7
{[%clk 0:01:25.8]} 29... g4 {[%clk 0:01:10.4]} 30. Rg1 {[%clk 0:01:14.6]} 30...
Be2 {[%clk 0:01:08]} 31. Kd2 {[%clk 0:01:13.9]} 31... Bf3 {[%clk 0:01:07.9]} 32.
Ke3 {[%clk 0:01:13.7]} 32... Kg5 {[%clk 0:00:28.4]} 33. a4 {[%clk 0:01:11.4]}
33... c5 {[%clk 0:00:19.7]} 34. a5 {[%clk 0:01:11]} 34... Kg6 {[%clk 0:00:17.2]}
35. a6 {[%clk 0:01:10.5]} 35... Rxh7 {[%clk 0:00:18.1]} 36. Rxh7 {[%clk
0:01:10.1]} 36... Kxh7 {[%clk 0:00:18.3]} 37. a7 {[%clk 0:01:10]} 37... Nc7
{[%clk 0:00:18.6]} 38. Rc1 {[%clk 0:01:06.6]} 38... Kg6 {[%clk 0:00:16.2]} 39.
Rxc5 {[%clk 0:01:06.3]} 39... Na8 {[%clk 0:00:17.1]} 40. Rc8 {[%clk 0:01:05.6]}
40... Nb6 {[%clk 0:00:17.4]} 41. a8=Q {[%clk 0:01:02]} 41... Nxa8 {[%clk
0:00:16.6]} 42. Rxa8 {[%clk 0:01:02.9]} 42... Bd1 {[%clk 0:00:16.8]} 43. b4
{[%clk 0:01:01.9]} 43... Kf7 {[%clk 0:00:17.2]} 44. b5 {[%clk 0:01:01.7]} 44...
Ke6 {[%clk 0:00:18.1]} 45. b6 {[%clk 0:01:01.1]} 45... Kd7 {[%clk 0:00:19]} 46.
b7 {[%clk 0:01:00.5]} 1-0